bitfinex/quotes_BTCUSD_20250922
["timestamp","ask_amount","ask_price","bid_price","bid_amount"]
[1758521665149,0.00658612,113260.0,113250.0,0.33044049]
[1758521665150,0.53379909,113260.0,113250.0,0.33044049]
[1758521665358,0.00658612,113260.0,113250.0,0.33044049]
[1758521665566,0.53379909,113260.0,113250.0,0.34158049]
[1758521665947,0.00658612,113260.0,113250.0,0.34158049]
[1758521666169,0.00658612,113260.0,113250.0,0.34358049]
[1758521667353,0.00658612,113260.0,113250.0,0.36922072]
[1758521667550,0.00658612,113260.0,113250.0,0.44937262]
[1758521667766,0.00658612,113260.0,113250.0,0.42373239]
[1758521667973,0.00658612,113260.0,113250.0,0.91029239]
[1758521668223,0.00658612,113260.0,113250.0,0.91344239]
[1758521669122,0.00658612,113260.0,113250.0,0.42368239]
[1758521669329,0.00658612,113260.0,113250.0,0.91332239]
[1758521669962,0.00658612,113260.0,113250.0,0.42368239]
[1758521670377,0.0014303,113260.0,113250.0,0.42368239]
[1758521671460,0.52864327,113260.0,113250.0,0.42053239]
[1758521671639,0.52864327,113260.0,113250.0,0.42368239]
[1758521671849,0.0014303,113260.0,113250.0,0.42368239]
[1758521672078,0.52864327,113260.0,113250.0,0.42368239]
[1758521672413,0.53064327,113260.0,113250.0,0.33838049]
[1758521672615,0.55345327,113260.0,113250.0,0.33838049]
[1758521672814,1.04311297,113260.0,113250.0,0.16178005]
[1758521673027,1.04311297,113260.0,113250.0,0.33838049]
[1758521673226,0.55499297,113260.0,113250.0,0.33838049]
[1758521673430,1.04275297,113260.0,113250.0,0.33838049]
[1758521673673,0.02778,113260.0,113250.0,0.33838049]
[1758521673838,0.52761297,113270.0,113260.0,0.17658484]
[1758521674037,0.52961297,113270.0,113260.0,0.26185451]
[1758521674225,0.55242297,113270.0,113260.0,0.26185451]
[1758521674425,0.02521,113270.0,113260.0,0.26185451]
[1758521674628,0.0004,113270.0,113260.0,0.26385451]
[1758521674867,0.52761297,113270.0,113260.0,0.26385451]
[1758521675097,0.55539297,113270.0,113260.0,0.26685451]
[1758521675435,0.55539297,113270.0,113260.0,0.09026967]
[1758521676192,0.55539297,113270.0,113260.0,0.26685451]
[1758521676422,0.55539297,113270.0,113260.0,0.09026967]
[1758521676552,0.0024,113270.0,113260.0,0.26997309]
[1758521676752,0.52761297,113270.0,113260.0,0.26885451]
[1758521676994,0.55242297,113270.0,113260.0,0.26685451]
[1758521677331,0.55539297,113270.0,113260.0,0.26685451]
[1758521677539,0.55539297,113270.0,113260.0,0.09026967]
[1758521677738,0.02818,113270.0,113260.0,0.26685451]
[1758521677894,1.04163297,113270.0,113260.0,0.09026967]
[1758521678493,0.51442,113270.0,113260.0,0.09026967]
[1758521678695,1.04163297,113270.0,113260.0,0.09026967]
[1758521679726,1.76351297,113270.0,113260.0,0.005]
[1758521680986,1.45384222,113270.0,113260.0,0.005]
[1758521681119,1.93912222,113270.0,113260.0,0.005]
[1758521681529,1.76215297,113270.0,113260.0,0.005]
[1758521682131,1.27727297,113270.0,113260.0,0.005]
[1758521682351,0.93727297,113270.0,113260.0,0.08526967]
[1758521682568,1.27727297,113270.0,113260.0,0.08526967]
[1758521682749,1.76179297,113270.0,113260.0,0.08526967]
[1758521682964,1.27727297,113270.0,113260.0,0.08526967]
[1758521683172,1.76175297,113270.0,113260.0,0.08526967]
[1758521683786,1.76163297,113270.0,113260.0,0.08526967]
[1758521684170,0.38228,113270.0,113260.0,0.08526967]
[1758521684371,1.39553297,113270.0,113260.0,0.26185451]
[1758521684593,0.91149297,113270.0,113260.0,0.26185451]
[1758521684798,0.91149297,113270.0,113260.0,0.32851587]
[1758521684799,1.39525297,113270.0,113260.0,0.32851587]
[1758521685207,1.39521297,113270.0,113260.0,0.32851587]
[1758521685401,1.39309297,113270.0,113260.0,0.32851587]
[1758521685624,0.86572,113270.0,113260.0,0.33166587]
[1758521685848,0.52761297,113270.0,113260.0,0.33166587]
[1758521686005,0.52761297,113270.0,113260.0,0.15508103]
[1758521686006,1.01097297,113270.0,113260.0,0.15508103]
[1758521686208,1.01289297,113270.0,113260.0,0.14993103]
[1758521686423,1.03570297,113270.0,113260.0,0.32651587]
[1758521686622,1.03570297,113270.0,113260.0,0.14993103]
[1758521686822,1.03570297,113270.0,113260.0,0.15793103]
[1758521687245,0.52761297,113270.0,113260.0,0.33651587]
[1758521687525,1.01253297,113270.0,113260.0,0.15793103]
[1758521687725,1.03534297,113270.0,113260.0,0.15793103]
[1758521687943,1.03831297,113270.0,113260.0,0.15793103]
[1758521689179,1.03831297,113270.0,113260.0,0.14993103]
[1758521689382,1.03831297,113270.0,113260.0,0.15493103]
[1758521689768,1.37831297,113270.0,113260.0,0.09026967]
[1758521690009,1.55488222,113270.0,113260.0,0.005]
[1758521690167,1.64015189,113270.0,113260.0,0.005]
[1758521690380,1.55488222,113270.0,113260.0,0.005]
[1758521690784,1.37711297,113270.0,113260.0,0.005]
[1758521691105,1.55368222,113270.0,113260.0,0.005]
[1758521691305,0.34,113260.0,113250.0,4e-05]
[1758521691606,0.96265297,113260.0,113250.0,4e-05]
[1758521691806,0.65043297,113260.0,113250.0,4e-05]
[1758521692030,0.60043297,113260.0,113250.0,4e-05]
[1758521692209,1.08175297,113260.0,113250.0,4e-05]
[1758521692653,1.59833781,113260.0,113250.0,4e-05]
[1758521692856,0.89454,113260.0,113250.0,0.00104]
[1758521693059,1.42175297,113260.0,113250.0,0.00104]
[1758521693295,1.59833781,113260.0,113250.0,0.00104]
[1758521694081,2.15570268,113260.0,113250.0,0.00104]
[1758521694285,2.24097235,113260.0,113250.0,0.00104]
[1758521694500,2.15462268,113260.0,113250.0,0.00104]
[1758521695216,1.75965235,113260.0,113250.0,0.00104]
[1758521695393,2.24169235,113260.0,113250.0,0.00104]
[1758521695596,1.76165235,113260.0,113250.0,4e-05]
[1758521695826,0.54676793,113240.0,113230.0,0.00108701]
[1758521695993,2.36503387,113240.0,113230.0,0.00108701]
[1758521696193,2.87249387,113240.0,113230.0,0.00108701]
[1758521696428,2.47808354,113240.0,113230.0,0.00108701]
[1758521697230,2.95748354,113240.0,113230.0,0.00108701]
[1758521697635,2.47808354,113240.0,113230.0,0.00108701]
[1758521697839,2.95720354,113240.0,113230.0,0.00108701]
[1758521698074,2.48008354,113240.0,113230.0,0.00108701]
[1758521698267,3.04431321,113240.0,113230.0,0.00108701]
[1758521699182,3.04231321,113240.0,113230.0,0.00108701]
[1758521699417,0.34,113210.0,113200.0,4e-05]
[1758521699606,1.61829801,113210.0,113200.0,4e-05]
[1758521699808,1.64643801,113210.0,113200.0,4e-05]
[1758521700416,1.76121958,113210.0,113200.0,4e-05]
[1758521700625,3.10585241,113210.0,113200.0,4e-05]
[1758521700830,3.15200772,113210.0,113200.0,4e-05]
[1758521701062,0.0088347,113190.0,113150.0,4e-05]
[1758521701271,0.9359229,113160.0,113150.0,0.08530967]
[1758521701476,1.8774229,113160.0,113150.0,4e-05]
[1758521701684,1.40731638,113160.0,113150.0,4e-05]
[1758521701902,2.09192917,113160.0,113150.0,4e-05]
[1758521702682,2.09207128,113160.0,113150.0,0.01604]
[1758521702889,2.09207128,113160.0,113150.0,0.00104]
[1758521703093,2.09171128,113160.0,113150.0,0.01204]
[1758521703409,2.09163128,113160.0,113150.0,0.01204]
[1758521703859,1.43761039,113160.0,113150.0,0.01204]
[1758521704101,1.37154501,113160.0,113150.0,0.01412]
[1758521704335,1.84846501,113160.0,113150.0,0.01312]
[1758521704759,1.84846501,113160.0,113150.0,0.01412]
[1758521704974,1.87356501,113160.0,113150.0,0.01204]
[1758521705187,2.0533459,113160.0,113150.0,0.01204]
[1758521705415,1.87316501,113160.0,113150.0,0.01204]
[1758521705631,1.87620501,113160.0,113150.0,0.01204]
[1758521705862,2.0830978,113160.0,113150.0,0.01204]
[1758521706100,2.16836747,113160.0,113150.0,0.01204]
[1758521706544,2.17619922,113160.0,113150.0,0.00879]
[1758521706743,0.17677214,113140.0,113130.0,0.00024]
[1758521707011,1.02119257,113140.0,113130.0,0.00024]
[1758521707212,0.9359229,113140.0,113130.0,0.00529]
[1758521707637,1.7516029,113140.0,113130.0,0.00529]
[1758521708056,0.9359229,113140.0,113130.0,0.00232]
[1758521708260,0.47548,113140.0,113130.0,0.00232]
[1758521708508,1.4114829,113140.0,113130.0,0.00529]
[1758521708712,0.9359229,113140.0,113130.0,0.02429]
[1758521709155,1.4435048,113140.0,113130.0,0.00124]
[1758521709330,1.64322694,113140.0,113130.0,0.01128]
[1758521709509,1.64626694,113140.0,113130.0,0.01128]
[1758521709712,1.98626694,113140.0,113130.0,0.01128]
[1758521710314,1.98626694,113140.0,113130.0,0.00028]
[1758521710315,2.07153661,113140.0,113130.0,0.00028]
[1758521710546,2.07253661,113140.0,113130.0,0.00028]
[1758521710751,1.13593371,113140.0,113130.0,0.00028]
[1758521710932,1.3321748,113140.0,113130.0,0.00028]
[1758521711132,1.3311748,113140.0,113130.0,0.00028]
[1758521711485,1.7825948,113140.0,113130.0,0.00028]
[1758521711689,1.8076948,113140.0,113130.0,0.00028]
[1758521711819,1.98446694,113140.0,113130.0,0.00428]
[1758521712019,2.07094661,113140.0,113130.0,0.00028]
[1758521712240,2.07194661,113140.0,113130.0,0.00428]
[1758521712640,0.17682673,113110.0,113080.0,0.00662356]
[1758521712843,0.9359229,113090.0,113080.0,0.00662356]
[1758521713294,0.9379029,113090.0,113080.0,0.00662356]
[1758521713510,1.4096829,113090.0,113080.0,0.00875356]
[1758521713713,1.4095229,113090.0,113080.0,0.00875356]
[1758521713969,1.40966487,113090.0,113080.0,0.00875356]
[1758521714431,1.40966487,113090.0,113080.0,0.00662356]
[1758521714651,1.43917487,113090.0,113080.0,0.00662356]
[1758521714908,1.98617706,113090.0,113080.0,0.00762356]
[1758521715352,1.98617706,113090.0,113080.0,0.01162356]
[1758521715590,2.07144673,113090.0,113080.0,0.00662356]
[1758521715965,1.6831164,113090.0,113080.0,0.01162356]
[1758521716239,2.1559164,113090.0,113080.0,0.01162356]
[1758521716666,0.9359229,113050.0,113040.0,0.00462122]
[1758521716892,0.9359229,113050.0,113030.0,0.00954573]
[1758521716893,2.06339589,113050.0,113030.0,0.00954573]
[1758521717104,0.94857112,113040.0,113030.0,0.00954573]
[1758521717319,0.9359229,113040.0,113030.0,0.00954573]
[1758521717540,1.4082029,113040.0,113030.0,0.01167573]
[1758521717763,1.4081229,113040.0,113030.0,0.27388957]
[1758521717934,0.91592223,113040.0,113030.0,0.27388957]
[1758521718159,1.38808223,113040.0,113030.0,0.27388957]
[1758521718495,1.40810477,113040.0,113030.0,0.27388957]
[1758521718732,1.40798477,113040.0,113030.0,0.27388957]
[1758521718934,0.47206187,113040.0,113030.0,0.27488957]
[1758521719137,1.40798477,113040.0,113030.0,0.27488957]
[1758521719338,0.47194187,113040.0,113030.0,0.27488957]
[1758521719486,1.40786477,113040.0,113030.0,0.27488957]
[1758521719691,0.47194187,113040.0,113030.0,0.27988957]
[1758521720151,1.40786477,113040.0,113030.0,0.27988957]
[1758521720350,1.40786477,113040.0,113030.0,0.1029454]
[1758521721530,1.40786477,113040.0,113030.0,0.0998954]
[1758521721768,1.40984477,113040.0,113030.0,0.01249573]
[1758521722047,1.98445519,113040.0,113030.0,0.01249573]
[1758521722215,1.80752667,113040.0,113030.0,0.01249573]
[1758521722628,0.39659377,113040.0,113030.0,0.01249573]
[1758521722960,1.74658477,113040.0,113030.0,0.01767573]
[1758521723172,0.81066187,113040.0,113030.0,0.01767573]
[1758521723410,1.74654477,113040.0,113030.0,0.01767573]
[1758521723731,1.92347329,113040.0,113030.0,0.01249573]
[1758521723909,0.83692187,113040.0,113030.0,0.01249573]
[1758521724049,1.77086477,113040.0,113030.0,0.01249573]
[1758521724419,1.74638477,113040.0,113030.0,0.01462573]
[1758521724651,1.27606477,113040.0,113030.0,0.01462573]
[1758521724785,1.74602477,113040.0,113030.0,0.01462573]
[1758521724978,1.74602477,113040.0,113030.0,0.01249573]
[1758521725408,1.94925329,113040.0,113030.0,0.01249573]
[1758521725611,1.98261519,113040.0,113030.0,0.01249573]
[1758521725774,1.77188477,113040.0,113030.0,0.01249573]
[1758521726128,1.74550477,113040.0,113030.0,0.01462573]
[1758521726274,0.93606477,113040.0,113030.0,0.1029454]
[1758521726685,0.93606477,113040.0,113030.0,0.11220264]
[1758521726686,1.40526477,113040.0,113030.0,0.11220264]
[1758521727079,1.40526477,113040.0,113030.0,0.1029454]
[1758521728135,0.46934187,113040.0,113030.0,0.0998954]
[1758521728502,1.42767477,113040.0,113030.0,0.0998954]
[1758521728674,1.42755477,113040.0,113030.0,0.0998954]
[1758521728816,1.42755477,113040.0,113030.0,0.0999354]
[1758521729021,1.40454477,113040.0,113030.0,0.1029154]
[1758521729645,0.93606477,113040.0,113030.0,0.1029154]
[1758521729910,1.40414477,113040.0,113030.0,0.1029154]
[1758521730321,1.40414477,113040.0,113030.0,0.0999354]
[1758521730642,1.40414477,113040.0,113030.0,0.1029154]
[1758521731080,1.40414477,113040.0,113030.0,0.0978054]
[1758521731734,1.40414477,113040.0,113030.0,0.0997654]
[1758521732298,0.00014187,113040.0,113030.0,0.1027454]
[1758521732502,0.46726187,113040.0,113030.0,0.27968957]
[1758521734845,1.40318477,113040.0,113030.0,0.1027454]
[1758521735046,1.40318477,113040.0,113030.0,0.27968957]
[1758521737515,1.40318477,113040.0,113030.0,0.1027454]
[1758521737712,0.46726187,113040.0,113030.0,0.1027454]
[1758521737916,1.40318477,113040.0,113030.0,0.1027454]
[1758521738125,1.40535477,113040.0,113030.0,0.0978054]
[1758521738326,1.42836477,113040.0,113030.0,0.0978054]
[1758521739702,1.40318477,113040.0,113030.0,0.0997654]
[1758521739906,1.42836477,113040.0,113030.0,0.0978054]
[1758521740129,1.43146477,113040.0,113030.0,0.0978054]
[1758521741405,0.96434477,113040.0,113030.0,0.0978054]
[1758521741557,1.42520477,113040.0,113030.0,0.0978054]
[1758521741935,1.39994477,113040.0,113030.0,0.1027454]
[1758521742336,1.39974477,113040.0,113030.0,0.27968957]
[1758521742575,0.93606477,113040.0,113030.0,0.27968957]
[1758521742786,1.39954477,113040.0,113030.0,0.1027454]
[1758521742984,1.39954477,113040.0,113030.0,0.27968957]
[1758521743346,1.39954477,113040.0,113030.0,0.1027454]
[1758521743557,1.39954477,113040.0,113030.0,0.0997654]
[1758521743759,1.42255477,113040.0,113030.0,0.0997654]
[1758521744000,0.93606477,113040.0,113030.0,0.27670957]
[1758521744303,1.39906477,113040.0,113030.0,0.27670957]
[1758521744829,1.39906477,113040.0,113030.0,0.0997654]
[1758521745064,0.00014187,113040.0,113030.0,0.28514035]
[1758521745268,0.46274187,113040.0,113030.0,0.27968957]
[1758521745472,1.39866477,113040.0,113030.0,0.27968957]
[1758521745690,1.39842477,113040.0,113030.0,0.27968957]
[1758521746220,0.00014187,113040.0,113030.0,0.61968957]
[1758521746668,0.00014187,113040.0,113030.0,0.64984147]
[1758521747733,0.00014187,113040.0,113030.0,0.64484147]
[1758521748110,0.00014187,113040.0,113030.0,0.65084147]
[1758521748317,0.00014187,113040.0,113030.0,0.64984147]
[1758521748748,0.00014187,113040.0,113030.0,0.65184147]
[1758521749609,0.00014187,113040.0,113030.0,0.62168957]
[1758521749809,0.93606477,113040.0,113030.0,0.62168957]
[1758521750353,0.93583674,113040.0,113030.0,0.62168957]
[1758521750551,1.4465229,113050.0,113040.0,0.51692852]
[1758521750757,1.4465229,113050.0,113040.0,0.60761223]
[1758521750954,1.4465229,113050.0,113040.0,0.60267223]
[1758521750955,0.53578,113050.0,113040.0,0.60267223]
[1758521751161,1.4695329,113050.0,113040.0,0.60463223]
[1758521751779,1.4695329,113050.0,113040.0,0.60563223]
[1758521751780,1.4465229,113050.0,113040.0,0.60563223]
[1758521752239,0.9859229,113050.0,113040.0,0.60863223]
[1758521752699,0.9859229,113050.0,113040.0,0.61161223]
[1758521752901,0.50976,113050.0,113040.0,0.61161223]
[1758521753073,1.4456829,113050.0,113040.0,0.61161223]
[1758521753480,1.4454429,113050.0,113040.0,0.61161223]
[1758521753926,1.4454429,113050.0,113040.0,0.60667223]
[1758521754119,1.4454429,113050.0,113040.0,0.61161223]
[1758521754531,0.50904,113050.0,113040.0,0.61161223]
[1758521754772,0.05,113050.0,113040.0,0.61161223]
[1758521754962,0.05,113050.0,113040.0,1.07057223]
[1758521755168,0.02343723,113050.0,113040.0,1.15072413]
[1758521755297,1.4139629,113080.0,113070.0,0.17688157]
[1758521755492,1.4139629,113080.0,113070.0,0.26709124]
[1758521755696,1.3945629,113080.0,113070.0,0.26709124]
[1758521756203,0.07126631,113090.0,113080.0,0.17686593]
[1758521756484,1.46558921,113090.0,113080.0,0.2670756]
[1758521756849,0.9359229,113090.0,113080.0,0.2670756]
[1758521757048,1.3941629,113090.0,113080.0,0.2670756]
[1758521757451,1.39430372,113090.0,113080.0,0.2672856]
[1758521757660,0.45838082,113090.0,113080.0,0.2672856]
[1758521758027,0.45838082,113090.0,113080.0,0.2642456]
[1758521758278,1.39430372,113090.0,113080.0,0.2672856]
[1758521758709,0.00014082,113090.0,113080.0,0.2702856]
[1758521759292,0.00014082,113090.0,113080.0,0.33801123]
[1758521759793,0.00014082,113090.0,113080.0,0.34501123]
[1758521760202,0.93606372,113090.0,113080.0,0.34197123]
[1758521760439,0.93606372,113090.0,113080.0,0.34501123]
[1758521760618,0.45698082,113090.0,113080.0,0.34501123]
[1758521760861,0.00014082,113090.0,113080.0,0.34501123]
[1758521761062,0.00014082,113090.0,113080.0,0.68501123]
[1758521761599,0.00014082,113090.0,113080.0,0.34501123]
[1758521761805,0.00014082,113090.0,113080.0,0.36686919]
[1758521762281,0.00014082,113090.0,113080.0,0.34501123]
[1758521762480,0.07449631,113130.0,113120.0,0.17680339]
[1758521762680,0.82812224,113130.0,113120.0,0.26207306]
[1758521762888,1.18764593,113130.0,113120.0,0.08737967]
[1758521763152,1.28723224,113130.0,113120.0,0.08526967]
[1758521763348,1.28723224,113130.0,113100.0,0.17683362]
[1758521763550,0.73162517,113110.0,113100.0,0.08526967]
[1758521763889,1.18714517,113110.0,113100.0,0.26210432]
[1758521764105,1.94709034,113110.0,113090.0,0.18565774]
[1758521764306,1.59782856,113100.0,113090.0,0.26211996]
[1758521764457,1.58518034,113100.0,113090.0,0.08526967]
[1758521764671,0.09759,113100.0,113090.0,0.08526967]
[1758521764874,0.00814076,113130.0,113090.0,0.08526967]
[1758521764875,0.45138898,113130.0,113120.0,0.17680339]
[1758521765080,1.65372593,113130.0,113120.0,0.08526967]
[1758521765441,1.65372593,113130.0,113100.0,0.18566317]
[1758521765442,1.72199224,113130.0,113100.0,0.18566317]
[1758521765641,0.73162517,113110.0,113100.0,0.26209111]
[1758521765974,0.75994517,113110.0,113100.0,0.26209111]
[1758521766170,0.75671517,113110.0,113100.0,0.26209111]
[1758521766376,0.51023707,113130.0,113110.0,0.17681241]
[1758521766584,1.21123517,113120.0,113110.0,0.17681241]
[1758521766787,1.21446517,113120.0,113110.0,0.17681241]
[1758521767186,1.21446517,113120.0,113110.0,0.26208869]
[1758521767829,1.21422517,113120.0,113110.0,0.26208869]
[1758521768159,0.11884076,113130.0,113110.0,0.26519869]
[1758521768279,0.85046593,113130.0,113120.0,0.26207306]
[1758521768474,1.28108593,113130.0,113120.0,0.26418306]
[1758521768891,1.30617593,113130.0,113120.0,0.26207306]
[1758521769126,0.82736593,113130.0,113120.0,0.26207306]
[1758521769320,0.82736593,113130.0,113120.0,0.26418306]
[1758521769700,0.09574076,113130.0,113120.0,0.26822306]
[1758521769874,0.00014076,113130.0,113120.0,0.26822306]
[1758521770281,0.00014076,113130.0,113120.0,0.28869727]
[1758521770667,0.00014076,113130.0,113120.0,0.36485535]
[1758521770862,0.00014076,113130.0,113120.0,0.38999623]
[1758521771097,0.00014076,113130.0,113120.0,0.36485535]
[1758521771418,0.00014076,113130.0,113120.0,0.36385535]
[1758521771554,0.00014076,113130.0,113120.0,0.37585535]
[1758521771754,0.00014076,113130.0,113120.0,0.37985535]
[1758521772160,0.00014076,113130.0,113120.0,0.34970345]
[1758521772364,0.51680468,113120.0,113080.0,0.02657031]
[1758521772585,0.00197,113090.0,113050.0,0.18571947]
[1758521772892,0.75915517,113090.0,113060.0,0.06615702]
[1758521773100,0.75593517,113100.0,113080.0,0.17686572]
[1758521773315,1.28244517,113110.0,113090.0,0.17685029]
[1758521773487,1.30675517,113110.0,113100.0,0.1794861]
[1758521773692,0.47828,113110.0,113100.0,0.26257836]
[1758521773966,0.4516,113120.0,113110.0,0.17681453]
[1758521774133,1.20950517,113120.0,113110.0,0.2620842]
[1758521774335,0.4516,113120.0,113110.0,0.2641442]
[1758521774545,0.4696,113120.0,113110.0,0.2641442]
[1758521774689,0.4516,113120.0,113110.0,0.2641442]
[1758521774890,0.4516,113120.0,113110.0,0.2621442]
[1758521775132,1.56538517,113130.0,113120.0,0.17180339]
[1758521775340,0.86004,113130.0,113120.0,0.08526967]
[1758521775552,0.86326,113130.0,113120.0,0.08526967]
[1758521775953,1.59488517,113130.0,113120.0,0.08526967]
[1758521776541,0.86326,113130.0,113120.0,0.08526967]
[1758521776893,1.59788517,113130.0,113120.0,0.26207306]
[1758521777284,1.20626,113130.0,113120.0,0.26207306]
[1758521777497,0.45328,113130.0,113120.0,0.26413306]
[1758521777740,0.00253151,113130.0,113120.0,0.26413306]
[1758521777971,0.81455,113140.0,113130.0,0.17678776]
[1758521778175,0.81652,113140.0,113130.0,0.26205743]
[1758521778380,0.81974,113140.0,113130.0,0.25705743]
[1758521778740,0.79024,113140.0,113130.0,0.25911743]
[1758521778945,1.13873517,113160.0,113150.0,0.17675651]
[1758521779237,1.13873517,113160.0,113150.0,0.26202618]
[1758521779238,1.59368517,113160.0,113150.0,0.26202618]
[1758521779436,1.93368517,113160.0,113150.0,0.26202618]
[1758521779844,1.20206,113160.0,113150.0,0.26202618]
[1758521780125,1.93382599,113160.0,113150.0,0.26202618]
[1758521780316,1.93382599,113160.0,113140.0,0.17675932]
[1758521780317,0.34,113150.0,113140.0,0.17675932]
[1758521780543,1.07359517,113150.0,113140.0,0.26202899]
[1758521780818,1.10112517,113150.0,113140.0,0.26202899]
[1758521781829,1.10112517,113150.0,113140.0,0.26402899]
[1758521782037,1.10112517,113150.0,113140.0,0.08726967]
[1758521782239,1.10112517,113150.0,113140.0,0.002]
[1758521783281,1.54932517,113150.0,113140.0,0.002]
[1758521783691,1.10112517,113150.0,113140.0,0.002]
[1758521784228,1.54582517,113150.0,113140.0,0.17677214]
[1758521784498,1.09790517,113150.0,113140.0,0.17677214]
[1758521784690,1.54970517,113150.0,113130.0,0.17678547]
[1758521784889,1.07162517,113140.0,113130.0,0.26205514]
[1758521785453,1.07162517,113140.0,113130.0,0.26411514]
[1758521785643,0.78728,113140.0,113130.0,0.26717514]
[1758521785843,1.07162517,113150.0,113140.0,0.17677214]
[1758521786046,0.7872,113150.0,113140.0,0.26204181]
[1758521786357,1.51882517,113150.0,113140.0,0.26204181]
[1758521786555,0.34,113150.0,113140.0,0.26410181]
[1758521786755,0.78684,113150.0,113140.0,0.26716181]
[1758521787159,0.34,113150.0,113140.0,0.26716181]
[1758521787358,1.51846517,113150.0,113140.0,0.26716181]
[1758521787692,1.51813397,113150.0,113140.0,0.26716181]
[1758521787907,0.7865088,113150.0,113140.0,0.26716181]
[1758521788039,1.51813397,113150.0,113140.0,0.26716181]
[1758521788253,0.7865088,113150.0,113140.0,0.26716181]
[1758521788457,1.17846517,113150.0,113140.0,0.26716181]
[1758521788921,0.38294082,113160.0,113150.0,0.17675651]
[1758521789065,1.56072599,113160.0,113150.0,0.26409618]
[1758521789259,0.73216599,113160.0,113150.0,0.26717618]
[1758521789509,1.17800599,113160.0,113150.0,0.26717618]
[1758521789753,0.44638082,113160.0,113150.0,0.26409618]
[1758521789992,1.17800599,113160.0,113150.0,0.26409618]
[1758521790892,1.17800599,113160.0,113150.0,0.26202618]
[1758521791116,1.20432599,113160.0,113150.0,0.26202618]
[1758521791582,0.00054082,113160.0,113150.0,0.26409618]
[1758521791810,0.73216599,113160.0,113150.0,0.26409618]
[1758521792095,0.73216599,113160.0,113150.0,0.26717618]
[1758521792096,0.00054082,113160.0,113150.0,0.26717618]
[1758521792793,0.00054082,113160.0,113150.0,0.29732808]
[1758521793713,0.00054082,113160.0,113150.0,0.30032808]
[1758521794176,0.00054082,113160.0,113150.0,0.29732808]
[1758521794402,0.00054082,113160.0,113150.0,0.30832808]
[1758521794859,0.00027408,113200.0,113190.0,0.17669405]
[1758521795103,0.75735999,113200.0,113190.0,0.26196372]
[1758521795803,0.76041999,113200.0,113190.0,0.26196372]
[1758521796043,0.76041999,113200.0,113190.0,0.08526967]
[1758521796282,0.76041999,113200.0,113190.0,0.26196372]
[1758521796731,0.75735999,113200.0,113190.0,0.26196372]
[1758521797173,0.76041999,113200.0,113190.0,0.26196372]
[1758521797414,1.10441999,113200.0,113190.0,0.08526967]
[1758521797629,1.10541999,113200.0,113190.0,0.26196372]
[1758521797833,0.37073482,113200.0,113190.0,0.26196372]
[1758521798255,1.10235999,113200.0,113190.0,0.26196372]
[1758521798497,0.73703999,113200.0,113190.0,0.26711372]
[1758521798723,0.00541482,113200.0,113190.0,0.26711372]
[1758521798943,1.07703999,113200.0,113190.0,0.26711372]
[1758521799160,0.34541482,113200.0,113190.0,0.26711372]
[1758521799376,0.73603999,113200.0,113190.0,0.26711372]
[1758521799622,0.73203999,113200.0,113190.0,0.70931372]
[1758521799896,0.00041482,113200.0,113190.0,0.70931372]
[1758521800139,0.73203999,113200.0,113190.0,0.70931372]
[1758521800371,0.00041482,113200.0,113190.0,0.70931372]
[1758521800611,0.00041482,113200.0,113190.0,0.73946562]
[1758521802210,0.00041482,113200.0,113190.0,0.73902562]
[1758521802416,0.73203999,113200.0,113190.0,0.26711372]
[1758521802592,0.73203999,113200.0,113190.0,0.70523372]
[1758521802825,0.73203999,113200.0,113190.0,0.70308372]
[1758521803034,0.75735999,113200.0,113190.0,0.70308372]
[1758521803243,0.75735999,113200.0,113190.0,0.26196372]
[1758521803380,0.02364482,113200.0,113190.0,0.26196372]
[1758521803599,0.00041482,113200.0,113190.0,0.26403372]
[1758521803813,0.73203999,113200.0,113190.0,0.26403372]
[1758521804014,0.73203999,113200.0,113190.0,0.26711372]
[1758521804262,0.00041482,113200.0,113190.0,0.26711372]
[1758521804463,0.73203999,113200.0,113190.0,0.26711372]
[1758521804607,0.00041482,113200.0,113190.0,0.26711372]
[1758521805155,0.73203999,113200.0,113190.0,0.26711372]
[1758521805361,0.0004,113210.0,113200.0,0.20683034]
[1758521805583,0.73162517,113250.0,113230.0,0.17663163]
[1758521805830,0.00014074,113250.0,113240.0,0.26187269]
[1758521806328,0.73176591,113250.0,113240.0,0.26187269]
[1758521806589,0.73176591,113250.0,113240.0,0.26394269]
[1758521806851,0.00014074,113250.0,113240.0,0.26702269]
[1758521807431,0.73176591,113250.0,113240.0,0.27002269]
[1758521807633,0.00014074,113250.0,113240.0,0.33394937]
[1758521807846,0.73176591,113250.0,113240.0,0.33702937]
[1758521808054,0.00014074,113250.0,113240.0,0.33702937]
[1758521808260,0.73176591,113250.0,113240.0,0.33702937]
[1758521808622,0.00014074,113250.0,113240.0,0.33702937]
[1758521808841,0.00014074,113250.0,113240.0,0.34002937]
[1758521809043,0.73176591,113250.0,113240.0,0.33702937]
[1758521809279,0.00014074,113250.0,113240.0,0.33702937]
[1758521809517,0.00014074,113250.0,113240.0,0.34302937]
[1758521809629,0.73176591,113250.0,113240.0,0.33994937]
[1758521810100,0.73176591,113250.0,113240.0,0.34302937]
[1758521810306,0.00014074,113250.0,113240.0,0.34302937]
[1758521810507,0.00014074,113250.0,113240.0,0.37318127]
[1758521810926,0.00642035,113260.0,113250.0,0.17660044]
[1758521811140,0.73851446,113260.0,113250.0,0.70323011]
[1758521811368,0.73851446,113260.0,113250.0,0.70530011]
[1758521811575,0.00688929,113260.0,113250.0,0.70530011]
[1758521811793,0.73851446,113260.0,113250.0,0.70530011]
[1758521812350,0.73851446,113260.0,113250.0,0.70630011]
[1758521812575,0.00688929,113260.0,113250.0,0.70630011]
[1758521812788,0.0004,113270.0,113260.0,0.25673674]
[1758521812910,0.0004,113270.0,113260.0,0.73272641]
[1758521813116,0.0004,113270.0,113260.0,0.73479641]
[1758521814143,0.73202517,113280.0,113270.0,0.17656925]
[1758521814351,0.73202517,113280.0,113270.0,0.26698892]
[1758521814352,0.0004,113280.0,113270.0,0.26698892]
[1758521814554,0.73202517,113280.0,113270.0,0.26698892]
[1758521815406,0.0004,113280.0,113270.0,0.26798892]
[1758521815618,0.0004,113280.0,113270.0,0.33145373]
[1758521816027,0.73202517,113280.0,113270.0,0.33453373]
[1758521816226,0.0004,113280.0,113270.0,0.33453373]
[1758521816441,0.73202517,113280.0,113270.0,0.33453373]
[1758521816648,0.0004,113280.0,113270.0,0.33453373]
[1758521816821,0.0004,113280.0,113270.0,0.33753373]
[1758521817199,0.73202517,113280.0,113270.0,0.33753373]
[1758521817407,0.0004,113280.0,113270.0,0.33753373]
[1758521817822,0.73202517,113280.0,113270.0,0.33753373]
[1758521818056,0.0004,113280.0,113270.0,0.33753373]
[1758521820641,0.0004,113280.0,113270.0,0.67753373]
[1758521821368,0.0375,113300.0,113290.0,0.51653808]
[1758521821567,0.01113041,113300.0,113290.0,1.07174965]
[1758521822266,0.00634821,113310.0,113300.0,0.1765225]
[1758521822524,0.73797338,113310.0,113300.0,0.60485217]